bitfinex-derivatives/quotes_SOLF0:USTF0_20250221
["timestamp","ask_amount","ask_price","bid_price","bid_amount"]
[1740171152835,5.9294,168.73,168.72,0.04152535]
[1740171158435,5.9294,168.73,168.72,2.535e-05]
[1740171159536,0.04437349,168.75,168.72,2.535e-05]
[1740171159943,0.04437349,168.75,168.73,5.9291]
[1740171160138,0.04437349,168.75,168.74,9.70781675]
[1740171160342,11.56311675,168.84,168.74,9.70781675]
[1740171161243,9.70781675,168.84,168.74,9.70781675]
[1740171161443,0.04438217,168.81,168.77,0.03820216]
[1740171162744,5.97128217,168.81,168.77,0.03820216]
[1740171163339,0.04438217,168.81,168.77,0.03820216]
[1740171163544,5.9271,168.8,168.77,0.03820216]
[1740171164249,5.9273,168.79,168.77,0.03820216]
[1740171164545,0.04438217,168.81,168.77,0.03820216]
[1740171167250,5.9272,168.8,168.77,0.03820216]
[1740171167451,0.04438217,168.81,168.77,0.03820216]
[1740171169362,5.9277,168.78,168.77,0.03820216]
[1740171173760,5.9277,168.78,168.77,2.16e-06]
[1740171176563,0.04438217,168.81,168.77,2.16e-06]
[1740171178766,5.9274,168.79,168.77,2.16e-06]
[1740171178961,0.04438217,168.81,168.77,2.16e-06]
[1740171179662,5.9272,168.8,168.77,2.16e-06]
[1740171180362,5.9277,168.78,168.77,2.16e-06]
[1740171180565,0.04438217,168.81,168.77,2.16e-06]
[1740171182664,5.9277,168.78,168.77,2.16e-06]
[1740171182859,0.04438217,168.81,168.77,2.16e-06]
[1740171183766,5.97098217,168.81,168.77,2.16e-06]
[1740171183971,0.04438217,168.81,168.77,2.16e-06]
[1740171186073,5.9272,168.8,168.77,2.16e-06]
[1740171186275,0.04438217,168.81,168.77,2.16e-06]
[1740171186668,5.9275,168.79,168.77,2.16e-06]
[1740171186874,0.04438217,168.81,168.77,2.16e-06]
[1740171187873,5.97108217,168.81,168.77,2.16e-06]
[1740171189575,0.04438217,168.81,168.77,2.16e-06]
[1740171190377,0.04438217,168.81,168.8,5.927]
[1740171190775,4.67,168.87,168.77,15.17751761]
[1740171191578,4.67,168.87,168.8,5.927]
[1740171192080,0.03977928,168.85,168.82,0.04091597]
[1740171194880,5.96527928,168.85,168.82,0.04091597]
[1740171195680,0.03977928,168.85,168.82,0.04091597]
[1740171195979,5.9256,168.84,168.82,0.04091597]
[1740171196179,0.03977928,168.85,168.82,0.04091597]
[1740171196377,5.9259,168.83,168.82,0.04091597]
[1740171200583,5.9259,168.83,168.82,1.597e-05]
[1740171200886,1.74357928,168.85,168.74,5.929]
[1740171201085,1.74357928,168.85,168.7,40.61015802]
[1740171201086,15.17751545,168.81,168.7,40.61015802]
[1740171201982,0.0391199,168.77,168.74,0.0370441]
[1740171202684,5.9673199,168.77,168.74,0.0370441]
[1740171203280,0.0391199,168.77,168.74,0.0370441]
[1740171203481,5.9672199,168.77,168.74,0.0370441]
[1740171203783,0.0391199,168.77,168.74,0.0370441]
[1740171205384,5.9672199,168.77,168.74,0.0370441]
[1740171206287,5.9285,168.76,168.74,0.0370441]
[1740171206585,0.0391199,168.77,168.74,0.0370441]
[1740171206787,5.9674199,168.77,168.74,0.0370441]
[1740171207086,0.0391199,168.77,168.74,0.0370441]
[1740171207287,4.67,168.8,168.76,15.17751545]
[1740171207788,1.7038,168.85,168.76,15.17751545]
[1740171208384,0.0437244,168.82,168.79,0.04213099]
[1740171209589,5.927,168.8,168.79,0.04213099]
[1740171209785,0.0437244,168.82,168.79,0.04213099]
[1740171210288,0.0437244,168.82,168.79,1.04213099]
[1740171210289,5.927,168.8,168.79,1.04213099]
[1740171213485,0.0437244,168.82,168.79,1.04213099]
[1740171214190,5.927,168.81,168.79,1.04213099]
[1740171214395,0.0437244,168.82,168.79,1.04213099]
[1740171215393,5.9269,168.81,168.79,1.04213099]
[1740171215590,0.0437244,168.82,168.79,1.04213099]
[1740171216191,5.927,168.8,168.79,1.04213099]
[1740171217391,0.0437244,168.82,168.79,1.04213099]
[1740171217597,5.9701244,168.82,168.79,1.04213099]
[1740171217895,0.0437244,168.82,168.79,1.04213099]
[1740171218095,5.9268,168.81,168.79,9.19213099]
[1740171218296,0.0437244,168.82,168.79,9.19213099]
[1740171219396,5.927,168.8,168.79,9.19213099]
[1740171224400,5.9268,168.81,168.79,9.19213099]
[1740171224600,0.0437244,168.82,168.79,9.19213099]
[1740171224795,0.0437244,168.82,168.81,5.9266]
[1740171225404,0.0437244,168.82,168.79,9.19213099]
[1740171225596,0.0437244,168.82,168.8,5.9269]
[1740171225792,0.0437244,168.82,168.79,9.19213099]
[1740171228003,5.9246,168.87,168.83,5.9259]
[1740171228196,5.3217,168.91,168.83,5.9259]
[1740171228503,5.9244,168.88,168.83,5.9259]
[1740171229104,0.03789962,168.87,168.84,0.04536535]
[1740171229603,5.9252,168.85,168.84,0.04536535]
[1740171232305,5.927,168.8,168.79,9.15]
[1740171240415,15.22257997,168.81,168.71,11.96]
[1740171240613,15.17751545,168.78,168.71,11.96]
[1740171241514,0.04293533,168.76,168.73,0.0301802]
[1740171242417,5.97133533,168.76,168.73,0.0301802]
[1740171243321,0.04293533,168.76,168.73,0.0301802]
[1740171243822,1.00836612,168.85,168.73,15.20769565]
[1740171244119,1.00836612,168.85,168.76,5.928]
[1740171244320,5.9266,168.82,168.76,5.928]
[1740171244512,5.9266,168.82,168.73,15.17751545]
[1740171244716,10.25851931,168.86,168.73,15.17751545]
[1740171244923,197.4956,168.87,168.76,0.04539455]
[1740171244924,0.0415529,168.79,168.76,0.04539455]
[1740171245218,5.9261,168.83,168.78,5.9274]
[1740171245419,0.0409637,168.79,168.78,5.9274]
[1740171246325,0.0409637,168.79,168.76,5.97138611]
[1740171247119,5.9277,168.78,168.76,0.04328611]
[1740171247324,0.0409637,168.79,168.76,0.04328611]
[1740171247624,5.9279,168.78,168.76,0.04328611]
[1740171248124,5.9277,168.78,168.76,0.04328611]
[1740171248528,0.0409637,168.79,168.76,0.04328611]
[1740171249625,5.928,168.77,168.76,0.04328611]
[1740171250022,0.0409637,168.79,168.76,0.04328611]
[1740171250621,0.0409637,168.79,168.77,5.928]
[1740171251022,0.0409637,168.79,168.76,0.04328611]
[1740171252025,1.7818,168.88,168.76,0.04328611]
[1740171252226,1.7818,168.88,168.75,15.17751545]
[1740171252530,1.7818,168.88,168.8,5.9267]
[1740171252531,5.925,168.86,168.8,5.9267]
[1740171252920,5.9258,168.84,168.78,5.9276]
[1740171253119,0.0408531,168.85,168.81,0.03782325]
[1740171253324,1.00881909,168.87,168.81,0.03782325]
[1740171253524,0.04012397,168.85,168.81,0.03782325]
[1740171253819,5.9263,168.82,168.81,0.03782325]
[1740171256023,0.04012397,168.85,168.81,0.03782325]
[1740171257225,5.9263,168.82,168.81,0.03782325]
[1740171260232,5.9263,168.82,168.81,2.325e-05]
[1740171263330,0.04012397,168.85,168.81,2.325e-05]
[1740171264230,5.9258,168.84,168.81,2.325e-05]
[1740171264432,0.04012397,168.85,168.81,2.325e-05]
[1740171264636,5.9259,168.84,168.81,2.325e-05]
[1740171265029,0.04012397,168.85,168.81,2.325e-05]
[1740171265231,5.9263,168.82,168.81,2.325e-05]
[1740171265436,0.04012397,168.85,168.81,2.325e-05]
[1740171266334,5.9256,168.84,168.81,2.325e-05]
[1740171266540,0.04012397,168.85,168.81,2.325e-05]
[1740171267540,5.9263,168.82,168.81,2.325e-05]
[1740171270346,5.9261,168.83,168.81,2.325e-05]
[1740171270646,0.04012397,168.85,168.81,2.325e-05]
[1740171271744,0.04012397,168.85,168.81,5.92632325]
[1740171271946,0.04012397,168.85,168.81,2.325e-05]
[1740171273545,0.04012397,168.85,168.81,5.92642325]
[1740171274045,0.04012397,168.85,168.81,2.325e-05]
[1740171275050,0.04012397,168.85,168.81,15.1775387]
[1740171275646,0.04012397,168.85,168.84,5.9256]
[1740171275842,10.28625741,168.95,168.84,15.17751545]
[1740171276349,20.41351545,168.97,168.81,15.17751545]
[1740171276350,30.69977286,168.97,168.81,15.17751545]
[1740171276549,1.00778904,168.96,168.81,15.17751545]
[1740171277049,0.04206878,168.9,168.87,0.04218303]
[1740171280051,0.04206878,168.9,168.87,3.76338303]
[1740171280251,1.8092,168.97,168.89,15.17751545]
[1740171280448,3.5718,169.02,168.91,15.17751545]
[1740171280750,3.5718,169.02,168.93,5.9222]
[1740171280751,5.9209,168.98,168.93,5.9222]
[1740171280950,3.5718,169.02,168.91,15.17751545]
[1740171281144,1.00748276,169.01,168.91,15.17751545]
[1740171281349,0.03863217,168.98,168.95,0.04199075]
[1740171281750,15.17751545,168.97,168.87,3.7212]
[1740171281951,5.9234,168.91,168.87,3.7212]
[1740171282453,5.9237,168.9,168.87,3.7212]
[1740171282653,15.17751545,168.97,168.87,3.7212]
[1740171282853,1.00804584,168.96,168.87,3.7212]
[1740171283055,0.04455882,168.94,168.9,0.04004586]
[1740171283254,1.00839771,168.99,168.89,5.9238]
[1740171283551,5.96225188,168.94,168.9,0.04391716]
[1740171283852,0.03995188,168.94,168.9,0.04391716]
[1740171284054,5.9227,168.93,168.9,0.04391716]
[1740171284552,5.96235188,168.94,168.9,0.04391716]
[1740171284744,0.03995188,168.94,168.9,0.04391716]
[1740171285753,0.03995188,168.94,168.9,5.96721716]
[1740171286554,0.03995188,168.94,168.91,5.9231]
[1740171286852,0.03995188,168.94,168.9,0.04391716]
[1740171287850,0.03995188,168.94,168.92,5.9224]
[1740171288251,0.03995188,168.94,168.9,0.04391716]
[1740171288252,0.03995188,168.94,168.93,5.9224]
[1740171290257,15.17751545,169.06,168.9,15.22143261]
[1740171290453,1.00930898,169.05,168.93,15.17751545]
[1740171290652,1.00930898,169.06,168.96,15.17751545]
[1740171290852,15.17751545,169.12,168.96,15.17751545]
[1740171291052,1.0098896,169.11,168.99,15.17751545]
[1740171291252,5.9179,169.06,168.99,15.17751545]
[1740171291459,20.37001545,169.12,168.99,21.09751545]
[1740171291654,0.04215678,169.07,169.03,0.04473373]
[1740171291957,5.9182,169.06,169.03,0.04473373]
[1740171292156,0.04215678,169.07,169.03,0.04473373]
[1740171294153,0.04215678,169.07,169.04,5.9183]
[1740171294757,0.04215678,169.07,169.03,0.04473373]
[1740171295058,1.6987,169.16,169.03,0.04473373]
[1740171295254,1.01009096,169.15,169.02,15.17751545]
[1740171295454,1.01009096,169.15,169.04,5.9185]
[1740171296056,0.03915972,169.11,169.08,0.03904183]
[1740171296559,5.9168,169.09,169.08,0.03904183]
[1740171296755,0.03915972,169.11,169.08,0.03904183]
[1740171297056,5.9168,169.09,169.08,0.03904183]
[1740171297650,5.9189,169.03,169.0,1.7239]
[1740171297851,1.7076,169.1,168.96,16.89461545]
[1740171298055,15.17751545,169.08,168.96,22.81571545]
[1740171298256,5.9197,169.01,168.96,22.81571545]
[1740171298456,15.17751545,169.08,168.96,16.89461545]
[1740171298760,5.9191,169.03,168.96,16.89461545]
[1740171298962,0.04543248,169.04,169.01,0.03773986]
[1740171300353,0.04543248,169.04,169.01,15.21525531]
[1740171300555,0.04543248,169.04,169.01,0.03773986]
[1740171300763,0.04543248,169.04,169.01,5.95713986]
[1740171300958,0.04543248,169.04,169.01,0.03773986]
[1740171301162,1.8047,169.13,169.02,15.17751545]
[1740171301359,1.8047,169.13,169.06,5.9176]
[1740171301662,5.916,169.12,169.06,5.9176]
[1740171302062,1.8332,169.14,169.03,1.7403]
[1740171302257,5.96012893,169.11,169.07,0.03987612]
[1740171302457,0.04372893,169.11,169.07,0.03987612]
[1740171302663,5.96012893,169.11,169.07,0.03987612]
[1740171303066,0.04372893,169.11,169.07,0.03987612]
[1740171303256,0.04372893,169.11,168.98,3.4774]
[1740171303464,15.17751545,169.1,168.97,0.62357255]
[1740171303766,2.83678281,169.09,168.97,0.62357255]
[1740171303965,1.00998281,169.08,168.97,0.62357255]
[1740171304367,17.00471545,169.07,168.97,0.62357255]
[1740171304569,0.04031943,169.04,169.01,0.04213853]
[1740171304863,5.9192,169.02,169.01,0.04213853]
[1740171305068,0.04031943,169.04,169.01,0.04213853]
[1740171305661,0.04031943,169.04,169.01,9.20213853]
[1740171305867,0.04031943,169.04,169.03,15.17751545]
[1740171306462,0.04031943,169.04,169.03,21.09641545]
[1740171307264,0.04031943,169.04,169.01,9.20213853]
[1740171308865,5.9192,169.02,169.01,9.20213853]
[1740171309064,5.9192,169.02,169.01,6.38983853]
[1740171309263,3.6196,169.03,168.93,32.93075802]
[1740171309768,1.01038342,169.02,168.93,32.93075802]
[1740171309961,5.9221,168.94,168.93,32.93075802]
[1740171310167,5.9221,168.94,168.93,23.94265802]
[1740171310465,5.9221,168.94,168.93,3.48465802]
[1740171310769,5.9224,168.93,168.92,46.13586885]
[1740171310976,0.04475219,168.95,168.85,12.6035]
[1740171311267,5.9245,168.87,168.85,10.79]
[1740171311472,15.17751545,168.93,168.85,10.79]
[1740171311668,15.17751545,168.93,168.82,37.03670941]
[1740171311866,195.00983622,168.92,168.82,37.03670941]
[1740171312062,195.00983622,168.91,168.82,37.03670941]
[1740171312264,0.04044281,168.89,168.85,0.04541131]
[1740171312469,5.9249,168.86,168.85,0.04541131]
[1740171314873,0.04044281,168.89,168.85,0.04541131]
[1740171316771,5.96424281,168.89,168.85,0.04541131]
[1740171316977,0.04044281,168.89,168.85,0.04541131]
[1740171317879,0.04044281,168.89,168.85,5.97061131]
[1740171318075,0.04044281,168.89,168.85,0.04541131]
[1740171319378,5.9242,168.88,168.85,0.04541131]
[1740171320284,0.04044281,168.89,168.85,0.04541131]
[1740171322885,5.9242,168.88,168.85,0.04541131]
[1740171323276,0.04044281,168.89,168.85,0.04541131]
[1740171323677,0.04044281,168.89,168.85,1.131e-05]
[1740171323883,5.9249,168.86,168.85,1.131e-05]
[1740171325886,6.93402798,168.86,168.85,1.131e-05]
[1740171326579,5.9249,168.86,168.85,1.131e-05]
[1740171330092,0.04044281,168.89,168.85,1.131e-05]
[1740171330592,5.9244,168.88,168.85,1.131e-05]
[1740171330888,0.04044281,168.89,168.85,1.131e-05]
[1740171331288,5.9249,168.86,168.85,1.131e-05]
[1740171332193,5.9246,168.87,168.85,1.131e-05]
[1740171332591,0.04044281,168.89,168.85,1.131e-05]
[1740171333905,5.9247,168.87,168.85,1.131e-05]
[1740171336204,0.04044281,168.89,168.85,1.131e-05]
[1740171336404,5.9247,168.87,168.85,1.131e-05]
[1740171337000,0.04044281,168.89,168.85,1.131e-05]
[1740171337504,5.9248,168.87,168.85,1.131e-05]
[1740171338805,0.04044281,168.89,168.85,1.131e-05]
[1740171339604,0.04044281,168.89,168.87,5.9243]
[1740171339903,0.04044281,168.89,168.85,1.131e-05]
[1740171340103,0.04044281,168.89,168.86,5.9248]
[1740171340609,23.734,169.06,168.85,1.131e-05]
[1740171340610,209.16846833,169.01,168.87,15.16846833]
[1740171340902,1.00954686,169.0,168.88,1.847]
[1740171341307,5.9211,168.97,168.93,5.9224]
[1740171341506,209.16846833,169.01,168.89,1.874]
[1740171341706,0.04239082,168.97,168.93,0.04424662]
[1740171342007,8.3,169.03,168.9,15.16846833]
[1740171342207,0.04515819,168.97,168.93,0.04235873]
[1740171343006,15.16846833,169.07,168.93,15.21082706]
[1740171343301,1.00970031,169.06,168.93,15.16846833]
[1740171343703,1.00970031,169.06,168.96,15.16846833]
[1740171343898,8.28,169.09,168.97,3.4741]
[1740171344108,1.00997129,169.08,168.97,3.4741]
[1740171344298,5.919,169.03,169.01,0.04056077]
[1740171344804,5.9192,169.02,169.01,0.04056077]
[1740171345510,5.9192,169.02,169.01,6.077e-05]
[1740171345710,6.92887663,169.02,169.01,6.077e-05]
[1740171346016,5.9192,169.02,169.01,6.077e-05]
[1740171346210,0.04061173,169.05,169.01,6.077e-05]
[1740171347405,5.9192,169.02,169.01,6.077e-05]
[1740171347610,6.92884651,169.02,169.01,6.077e-05]
[1740171348212,6.9286514,169.02,169.01,6.077e-05]
[1740171349712,5.9192,169.02,169.01,6.077e-05]
[1740171349912,6.92853012,169.02,169.01,6.077e-05]
[1740171352816,5.9192,169.02,169.01,6.077e-05]
[1740171353016,6.92762822,169.02,169.01,6.077e-05]
[1740171355914,5.9192,169.02,169.01,6.077e-05]
[1740171356212,6.92762264,169.02,169.01,6.077e-05]
[1740171357717,6.92694335,169.02,169.01,6.077e-05]
[1740171358113,5.9192,169.02,169.01,6.077e-05]
[1740171361917,6.9274799,169.02,169.01,6.077e-05]
[1740171363210,5.9192,169.02,169.01,6.077e-05]
[1740171365022,0.04061173,169.05,169.01,6.077e-05]
[1740171365322,5.9192,169.03,169.01,6.077e-05]
[1740171365622,0.04061173,169.05,169.01,6.077e-05]
[1740171367421,5.9192,169.02,169.01,6.077e-05]
[1740171368327,6.92692049,169.02,169.01,6.077e-05]
[1740171369128,5.9192,169.02,169.01,6.077e-05]
[1740171369919,0.04061173,169.05,169.01,6.077e-05]
[1740171370417,0.04061173,169.05,169.02,5.9189]
[1740171370727,5.95891173,169.05,169.02,5.9189]
[1740171371128,0.04061173,169.05,169.01,6.077e-05]
[1740171372430,5.9192,169.02,169.01,6.077e-05]
[1740171375630,6.92689618,169.02,169.01,6.077e-05]
[1740171377231,15.18689618,169.02,169.01,6.077e-05]
[1740171379236,15.18648659,169.02,169.01,6.077e-05]
[1740171382537,15.18641915,169.02,169.01,6.077e-05]
[1740171383940,15.18640556,169.02,169.01,6.077e-05]
[1740171384939,9.26720556,169.02,168.91,3.5731]
[1740171385231,1.00720556,169.01,168.91,3.5731]
[1740171385437,1.00720556,169.01,168.94,5.9219]
[1740171386032,0.03881405,168.99,168.96,0.04031841]
[1740171386234,5.9211,168.97,168.96,0.04031841]
[1740171386431,5.9211,168.97,168.96,1.841e-05]
[1740171386835,6.92784939,168.97,168.96,1.841e-05]
[1740171387031,21.08956833,168.97,168.96,1.841e-05]
[1740171387339,22.096122,168.97,168.96,1.841e-05]
[1740171388836,6.92765367,168.97,168.96,1.841e-05]
[1740171390838,5.9211,168.97,168.96,1.841e-05]
[1740171392136,6.92798307,168.97,168.96,1.841e-05]
[1740171394045,5.9211,168.97,168.96,1.841e-05]
[1740171409666,16.62615863,168.97,168.96,1.841e-05]
[1740171410767,16.62609266,168.97,168.96,1.841e-05]
[1740171412666,5.9211,168.97,168.96,1.841e-05]
[1740171413465,6.92708571,168.97,168.96,1.841e-05]
[1740171413665,5.9211,168.97,168.96,1.841e-05]
[1740171414375,5.9235,168.9,168.89,0.0001]
[1740171414566,9.69878935,168.9,168.8,5.9269]
[1740171414767,5.9255,168.85,168.79,1.7142]
[1740171414972,9.69878935,168.88,168.79,34.46902347]
[1740171415162,9.69878935,168.88,168.79,44.16781282]
[1740171415369,0.0402614,168.85,168.82,9.73861762]
[1740171415570,8.26,168.92,168.84,9.69878935]
[1740171415770,8.26,168.92,168.86,9.69878935]
[1740171415971,5.9225,168.93,168.87,1.7142]
[1740171416166,8.26,168.99,168.87,1.7142]
[1740171416366,9.69878935,168.97,168.87,1.7142]
[1740171416569,0.03887352,168.94,168.9,0.03803021]
[1740171417474,1.00606652,168.98,168.9,0.03803021]
[1740171417671,8.26,168.99,168.9,0.03803021]
[1740171417873,5.9206,168.99,168.9,0.03803021]
[1740171418180,15.15545101,169.01,168.9,0.03803021]
[1740171418377,5.921,168.97,168.92,5.9224]
[1740171418679,0.03825731,168.96,168.93,0.04072383]
[1740171419179,5.9217,168.95,168.93,0.04072383]
[1740171419981,5.95965731,168.96,168.93,0.04072383]
[1740171420478,5.95965731,168.96,168.93,5.96312383]
[1740171420677,0.03825731,168.96,168.93,0.04072383]
[1740171421376,10.25859946,169.02,168.93,0.04072383]
[1740171421579,1.00608266,169.01,168.96,5.9212]
[1740171421877,5.92,169.0,168.96,5.9212]
[1740171422478,0.03895682,169.0,168.96,0.04461308]
[1740171422879,5.921,168.97,168.96,0.04461308]
[1740171423278,0.03895682,169.0,168.96,0.04461308]
[1740171423485,5.9209,168.98,168.96,0.04461308]
[1740171423888,0.03895682,169.0,168.96,0.04461308]
[1740171424089,5.921,168.97,168.96,0.04461308]
[1740171426286,5.921,168.97,168.96,1.308e-05]
[1740171426984,6.92703944,168.97,168.96,1.308e-05]
[1740171427877,6.92690254,168.97,168.96,1.308e-05]
[1740171428780,5.921,168.97,168.96,1.308e-05]
[1740171428980,6.92685196,168.97,168.96,1.308e-05]
[1740171429782,15.18685196,168.97,168.96,1.308e-05]
[1740171430089,30.34230297,168.97,168.96,1.308e-05]
[1740171430286,24.42130297,168.97,168.81,1.6962]
[1740171430487,15.15545101,168.94,168.82,3.4921]
[1740171430688,5.9236,168.9,168.85,5.9251]
[1740171430989,23.41545101,168.97,168.82,3.4921]
[1740171431182,5.9241,168.89,168.85,5.9252]
[1740171431388,5.9241,168.89,168.88,0.0372708]
[1740171432585,6.92915185,168.89,168.88,7.08e-05]
[1740171433684,0.03747885,168.91,168.88,7.08e-05]
[1740171433887,162.6462515,168.99,168.88,7.08e-05]
[1740171434085,162.6462515,168.99,168.87,1.8068]
[1740171434292,10.24545056,168.98,168.89,15.15545101]
[1740171434489,10.24545056,168.98,168.9,1.695]
[1740171434786,162.6462515,168.99,168.92,15.15545101]
[1740171434787,157.0218515,168.99,168.92,15.15545101]
[1740171434991,157.0218515,168.99,168.95,15.15545101]
[1740171435193,0.03781656,168.97,168.95,15.15545101]
[1740171435387,151.3998515,168.99,168.96,5.9213]
[1740171435590,4.68,169.06,168.95,15.15545101]
[1740171435784,1.00548055,169.05,168.95,15.15545101]
[1740171435990,4.68,169.06,168.92,15.15545101]
[1740171436290,1.00541828,169.05,168.9,1.695]
[1740171436481,1.00541828,169.05,168.93,15.15545101]
[1740171436688,0.04178216,168.99,168.96,0.03990278]
[1740171437693,0.04178216,168.99,168.97,5.921]
[1740171437989,1.00527887,169.05,168.97,5.921]
[1740171438190,5.9189,169.03,168.96,0.03990278]
[1740171438387,5.9189,169.03,168.98,5.9205]
[1740171438786,5.9193,169.02,168.97,5.921]
[1740171439182,0.03782718,169.01,168.98,0.04101784]
[1740171439388,0.03782718,169.01,168.98,5.96151784]
[1740171439588,0.03782718,169.01,168.98,0.04101784]
[1740171440383,4.68,169.06,168.98,0.04101784]
[1740171440587,5.9191,169.05,169.0,5.9206]
[1740171441191,4.68,169.06,168.98,0.04101784]
[1740171441393,4.68,169.06,168.99,24.22813644]
[1740171441593,0.04350524,169.04,169.0,3.4427]
[1740171441788,4.68,169.06,169.03,5.9195]
[1740171442293,21.4271334,169.15,169.03,5.9195]
[1740171442497,5.9177,169.09,169.04,5.9191]
[1740171442790,21.4271334,169.15,169.0,3.4427]
[1740171442994,0.03877706,169.08,169.06,5.9182]
[1740171443392,0.03877706,169.08,169.05,0.04151152]
[1740171444095,0.03877706,169.08,169.05,5.96001152]
[1740171444297,0.03877706,169.08,169.05,0.04151152]
[1740171444596,0.03877706,169.08,169.05,5.96001152]
[1740171445795,0.03877706,169.08,169.05,0.04151152]
[1740171445994,0.03877706,169.08,169.06,5.9184]
[1740171446494,0.03877706,169.08,169.05,5.96021152]
[1740171446889,0.03877706,169.08,169.05,0.04151152]
[1740171447087,0.03877706,169.08,169.06,5.9184]
[1740171447289,0.03877706,169.08,169.05,0.04151152]
[1740171447796,0.03877706,169.08,169.05,5.96001152]
[1740171448296,0.03877706,169.08,169.06,5.9184]
[1740171449496,0.03877706,169.08,169.05,0.04151152]
[1740171450099,0.03877706,169.08,169.06,5.9182]
[1740171451701,5.95657706,169.08,169.05,0.04151152]
[1740171451892,0.03877706,169.08,169.05,0.04151152]
[1740171452896,5.95677706,169.08,169.05,0.04151152]
[1740171453297,0.03877706,169.08,169.05,0.04151152]
[1740171453997,5.9184,169.06,169.05,0.04151152]
[1740171454602,5.9184,169.06,169.05,1.152e-05]
[1740171454794,6.92339601,169.06,169.05,1.152e-05]
[1740171455300,1.00499601,169.06,168.93,1.8203]
[1740171455505,1.00499601,169.05,168.93,1.8203]
[1740171455695,1.00499601,169.04,168.93,1.8203]
[1740171455899,8.3,169.08,168.93,1.8203]
[1740171456099,1.0051254,169.07,168.93,1.8203]
[1740171456302,25.23326184,169.07,168.93,1.8203]
[1740171456503,5.9212,168.99,168.98,0.03930837]
[1740171457604,6.92659367,168.99,168.98,0.03930837]
[1740171457799,5.9212,168.99,168.98,0.03930837]
[1740171457999,6.92692185,168.99,168.98,0.03930837]
[1740171458205,1.00572185,168.99,168.98,0.03930837]
[1740171458510,3.4355,169.01,168.98,0.03930837]
[1740171458701,1.00585344,169.0,168.98,0.03930837]
[1740171458900,5.9209,168.99,168.98,0.03930837]
[1740171459109,3.4355,169.01,168.98,0.03930837]
[1740171459309,1.00597416,169.0,168.98,0.03930837]
[1740171459499,3.4355,169.01,168.98,0.03930837]
[1740171459804,0.04364594,169.02,168.98,24.26744481]
[1740171460009,0.04364594,169.02,168.99,1.825]
[1740171460604,0.04364594,169.02,169.0,5.9202]
[1740171460809,0.04364594,169.02,168.99,1.825]
[1740171461310,0.04364594,169.02,169.0,5.9205]
[1740171461607,0.04364594,169.02,168.99,1.825]
[1740171461806,0.04364594,169.02,169.01,5.9202]
[1740171462010,0.04364594,169.02,168.99,1.825]
[1740171462407,0.04364594,169.02,169.0,5.9205]
[1740171462611,0.04364594,169.02,168.99,1.825]
[1740171463311,0.04364594,169.02,169.0,5.9205]
[1740171464611,0.04364594,169.02,169.01,5.9202]
[1740171465313,0.04364594,169.02,168.99,1.825]
[1740171466313,0.04364594,169.02,169.0,5.9205]
[1740171466514,0.04364594,169.02,168.99,1.825]
[1740171467115,0.04364594,169.02,169.0,5.9205]
[1740171467513,0.04364594,169.02,168.99,1.825]
[1740171467817,0.04364594,169.02,169.01,5.9202]
[1740171468613,5.9182,169.07,169.04,5.919]
[1740171469017,5.2242,169.11,169.04,5.919]
[1740171469211,1.00620187,169.1,169.0,15.13061044]
[1740171469411,1.00620187,169.1,169.03,15.13061044]
[1740171469709,0.0388489,169.08,169.07,5.9181]
[1740171476923,1.00647583,169.15,169.06,1.7714]
[1740171477220,5.9163,169.13,169.06,1.7714]
[1740171477411,5.1717,169.16,169.1,5.9168]
[1740171477616,1.0064915,169.15,169.1,5.9168]
[1740171478120,0.04539195,169.14,169.11,0.04015167]
[1740171478521,5.9163,169.12,169.11,0.04015167]
[1740171479120,5.9161,169.13,169.11,0.04015167]
[1740171479921,5.9163,169.12,169.11,0.04015167]
[1740171480421,0.04539195,169.14,169.11,0.04015167]
[1740171481113,5.96109195,169.14,169.11,5.95655167]
[1740171481819,5.96109195,169.14,169.11,0.04015167]
[1740171481820,0.04539195,169.14,169.11,0.04015167]
[1740171482318,5.9163,169.12,169.11,0.04015167]
[1740171482622,0.04539195,169.14,169.04,1.7017]
[1740171482822,1.00590342,169.15,169.04,1.7017]
[1740171483217,1.00590342,169.15,169.04,25.8984124]
[1740171483416,1.00590342,169.15,169.1,5.9168]
[1740171483619,0.03763907,169.11,169.1,5.9168]
[1740171483919,0.03763907,169.11,169.08,0.0453346]
[1740171484225,0.03763907,169.11,169.09,5.9172]
[1740171484919,0.03763907,169.11,169.08,0.0453346]
[1740171486221,0.03763907,169.11,169.09,5.9173]
[1740171486816,0.03763907,169.11,169.08,0.0453346]
[1740171486817,0.03763907,169.11,169.1,5.917]
[1740171487123,0.03763907,169.11,169.08,0.0453346]
[1740171487725,0.03763907,169.11,169.08,5.9630346]
[1740171488122,0.03763907,169.11,169.1,5.917]
[1740171490328,0.03763907,169.11,169.08,0.0453346]